fUSD/lending_fUSD_20240630
["ID","MTS","AMOUNT","RATE_DAILY","PERIOD"]
[330705150,1719717955209,213.4977548,0.00011098,2]
[330705151,1719717987266,944.8159421,0.00011098,2]
[330705152,1719717998012,3072.90189007,0.00011098,2]
[330705153,1719718002109,1148.56962745,0.00011098,2]
[330705154,1719718012622,155.24809589,0.00011098,2]
[330705155,1719718020910,371.13047645,0.00011098,2]
[330705156,1719718081859,543.48335095,0.00011098,2]
[330705157,1719718116855,179.39779435,0.00011098,2]
[330705158,1719718132687,3106.94505996,0.00011098,2]
[330705159,1719718155299,-371.63466835,0.00011197,2]
[330705160,1719718155331,-300.0,0.00011198,2]
[330705161,1719718155355,-267.0,0.00011198,2]
[330705162,1719718155379,-1898.68193165,0.00011199,2]
[330705163,1719718156155,305.42303826,0.00011098,2]
[330705164,1719718223660,188.88397168,0.00011098,2]
[330705165,1719718227549,403.67302697,0.00011098,2]
[330705166,1719718232321,-632.56559168,0.00011197,2]
[330705168,1719718232332,-227.04865744,0.00011197,2]
[330705171,1719718232342,-322.09322784,0.00011199,2]
[330705172,1719718232353,-4986.36867086,0.00011199,2]
[330705173,1719718232365,-2670.35134403,0.00011199,2]
[330705176,1719718232653,-2488.32184878,0.00011199,2]
[330705179,1719718232667,-343.3895603,0.00011199,2]
[330705180,1719718232678,-1033.7,0.00011199,2]
[330705181,1719718232690,-1716.95652717,0.00011199,2]
[330705182,1719718232703,-2289.8323066,0.00011199,2]
[330705183,1719718232715,-831.66201726,0.00011199,2]
[330705184,1719718232730,-499.2998041,0.00011199,2]
[330705185,1719718232743,-2289.26786308,0.00011199,2]
[330705186,1719718232755,-578.5596183,0.00011199,2]
[330705187,1719718232766,-2219.9999988,0.00011199,2]
[330705188,1719718232778,-520.46503853,0.00011199,2]
[330705189,1719718232788,-664.39030865,0.00011199,2]
[330705190,1719718232799,-14098.37499696,0.00011199,2]
[330705191,1719718232809,-266.90924019,0.00011199,2]
[330705192,1719718232819,-944.8159421,0.00011199,2]
[330705193,1719718232829,-424.48736535,0.00011199,2]
[330705194,1719718232838,-157.33809464,0.00012273,2]
[330705195,1719718232849,-196.22350627,0.00012302,2]
[330705196,1719718232859,-519.86065789,0.00012314,2]
[330705197,1719718232868,-250.0,0.00012442,2]
[330705198,1719718232877,-386.61,0.00012538,2]
[330705199,1719718232887,-1441.6,0.0001259,2]
[330705200,1719718232896,-500.0,0.00012606,2]
[330705201,1719718232905,-1216.04,0.00012616,2]
[330705202,1719718232915,-11663.84,0.00012649,2]
[330705203,1719718232928,-5483.06,0.00012649,2]
[330705204,1719718232937,-260.13,0.00012701,2]
[330705205,1719718232947,-1932.92,0.00012754,2]
[330705206,1719718232956,-250.0,0.00012824,2]
[330705207,1719718232966,-1000.0,0.0001285,2]
[330705208,1719718232977,-774.49,0.00013005,2]
[330705209,1719718232986,-400.0,0.0001334,2]
[330705210,1719718232997,-1458.68,0.0001334,2]
[330705211,1719718233006,-19658.35443239,0.00013452,2]
[330705212,1719718233015,-392.04461516,0.00013452,2]
[330705213,1719718233026,-306.13472679,0.00013452,2]
[330705214,1719718233035,-599.27979208,0.00013452,2]
[330705215,1719718233046,-1632.39120581,0.00013452,2]
[330705216,1719718233056,-1059.60082559,0.00013639,2]
[330705217,1719718233066,-500.0,0.00013698,3]
[330705218,1719718233075,-500.0,0.00013698,3]
[330705219,1719718233085,-500.0,0.00013698,3]
[330705220,1719718233095,-286.94,0.00013698,3]
[330705221,1719718233104,-534.52,0.00013698,3]
[330705222,1719718233113,-500.0,0.00013698,3]
[330705223,1719718233123,-500.0,0.00013698,3]
[330705224,1719718233132,-500.0,0.00013698,3]
[330705225,1719718233142,-500.0,0.00013698,3]
[330705226,1719718233151,-500.0,0.00013698,3]
[330705227,1719718233161,-500.0,0.00013698,3]
[330705228,1719718233171,-500.0,0.00013698,3]
[330705229,1719718233180,-500.0,0.00013698,3]
[330705230,1719718233190,-525.93,0.00013698,3]
[330705231,1719718233199,-500.0,0.00013698,3]
[330705232,1719718233208,-500.0,0.00013698,3]
[330705233,1719718233217,-648.03,0.00013698,3]
[330705234,1719718233228,-333.1,0.00013699,2]
[330705235,1719718233237,-200.0,0.00013699,2]
[330705236,1719718233246,-189.09,0.00013699,2]
[330705237,1719718233256,-2751.0,0.00013699,2]
[330705238,1719718233267,-10000.0,0.00013699,2]
[330705239,1719718233277,-2066.37,0.00013699,2]
[330705240,1719718233286,-500.0,0.00013702,2]
[330705241,1719718233295,-500.0,0.00013702,2]
[330705242,1719718233306,-500.0,0.00013702,2]
[330705243,1719718233315,-500.0,0.00013702,2]
[330705244,1719718233324,-5521.8221,0.00013717,2]
[330705245,1719718233334,-6452.7179,0.00013717,2]
[330705246,1719718233344,-500.0,0.00013789,3]
[330705247,1719718233353,-1274.6,0.00013789,3]
[330705248,1719718233363,-500.0,0.00013789,3]
[330705249,1719718233372,-500.0,0.00013789,3]
[330705250,1719718233382,-500.0,0.00013789,3]
[330705251,1719718233391,-500.0,0.00013789,3]
[330705252,1719718233401,-500.0,0.00013789,3]
[330705253,1719718233411,-540.43,0.00013789,3]
[330705254,1719718233421,-170.04,0.00013789,3]
[330705255,1719718233432,-500.0,0.00013789,3]
[330705256,1719718233441,-500.0,0.00013789,3]
[330705257,1719718233451,-584.67,0.00013789,3]
[330705258,1719718233460,-547.34,0.00013789,3]
[330705259,1719718233470,-674.13,0.00013789,3]
[330705260,1719718233483,-249.55,0.00013789,3]
[330705261,1719718233496,-532.93,0.00013789,3]
[330705262,1719718233505,-1157.89,0.00013789,3]
[330705263,1719718233515,-595.24,0.00013789,3]
[330705264,1719718233525,-500.0,0.00013789,3]
[330705265,1719718233535,-500.0,0.00013789,3]
[330705266,1719718233544,-500.0,0.00013789,3]
[330705267,1719718233554,-65820.66235456,0.0001379,2]
[330705268,1719718233563,-3926.61642543,0.00013799,2]
[330705269,1719718233573,-1000.0,0.00013807,2]
[330705270,1719718233582,-500.0,0.00013807,2]
[330705271,1719718233592,-500.34250522,0.00013807,2]
[330705272,1719718233601,-500.0,0.00013807,2]
[330705273,1719718233612,-645.42971659,0.00013807,2]
[330705274,1719718233622,-500.0,0.00013807,3]
[330705275,1719718233632,-500.0,0.00013807,3]
[330705276,1719718233642,-500.0,0.00013807,3]
[330705277,1719718233652,-500.0,0.00013807,3]
[330705278,1719718233661,-500.0,0.00013807,3]
[330705279,1719718233671,-500.0,0.00013807,3]
[330705280,1719718233681,-500.0,0.00013807,3]
[330705281,1719718233692,-500.0,0.00013807,3]
[330705282,1719718233702,-500.0,0.00013807,3]
[330705283,1719718233712,-500.0,0.00013807,3]
[330705284,1719718233722,-500.0,0.00013807,3]
[330705285,1719718233732,-500.0,0.00013807,3]
[330705286,1719718233742,-3073.95,0.00013807,3]
[330705287,1719718233752,-500.0,0.00013807,3]
[330705288,1719718233761,-500.0,0.00013807,3]
[330705289,1719718233771,-500.0,0.00013807,3]
[330705290,1719718233781,-500.0,0.00013807,3]
[330705291,1719718233792,-500.0,0.00013807,3]
[330705292,1719718233801,-500.0,0.00013807,3]
[330705293,1719718233811,-500.0,0.00013807,3]
[330705294,1719718233821,-500.0,0.00013807,3]
[330705295,1719718233830,-500.0,0.00013807,3]
[330705296,1719718233840,-500.0,0.00013807,3]
[330705297,1719718233850,-500.0,0.00013807,3]
[330705298,1719718233860,-500.0,0.00013807,3]
[330705299,1719718233870,-500.0,0.00013807,3]
[330705300,1719718233881,-500.0,0.00013808,3]
[330705301,1719718233891,-500.0,0.00013808,3]
[330705302,1719718233900,-500.0,0.00013808,3]
[330705303,1719718233910,-500.0,0.00013808,3]
[330705304,1719718233924,-500.0,0.00013808,3]
[330705305,1719718233934,-500.0,0.00013808,3]
[330705306,1719718233944,-407.61,0.00013808,3]
[330705307,1719718233955,-500.0,0.00013816,3]
[330705308,1719718233966,-500.0,0.00013816,3]
[330705309,1719718233976,-500.0,0.00013816,3]
[330705310,1719718233987,-500.0,0.00013816,3]
[330705311,1719718233998,-500.0,0.00013816,3]
[330705312,1719718234007,-500.0,0.00013816,3]
[330705313,1719718234017,-500.0,0.00013816,3]
[330705314,1719718234028,-500.0,0.00013816,3]
[330705315,1719718234038,-500.0,0.00013816,3]
[330705316,1719718234048,-500.0,0.00013816,3]
[330705317,1719718234059,-500.0,0.00013816,3]
[330705318,1719718234070,-25000.0,0.00013817,2]
[330705319,1719718234080,-1000.0,0.00013817,2]
[330705320,1719718234090,-500.0,0.00013899,3]
[330705321,1719718234100,-1274.6,0.00013899,3]
[330705322,1719718234111,-485.52,0.00013899,3]
[330705323,1719718234121,-500.0,0.00013899,3]
[330705324,1719718234131,-523.84244494,0.00013899,3]
[330705325,1719718234141,-500.0,0.00013899,3]
[330705326,1719718234151,-500.0,0.00013899,3]
[330705327,1719718234161,-540.43,0.00013899,3]
[330705328,1719718234171,-500.0,0.00013899,3]
[330705329,1719718234181,-500.0,0.00013899,3]
[330705330,1719718234191,-674.13,0.00013899,3]
[330705331,1719718234201,-1157.89,0.00013899,3]
[330705332,1719718234211,-500.0,0.00013899,3]
[330705333,1719718234221,-495.34318956,0.00013899,3]
[330705334,1719718234232,-500.0,0.00013899,3]
[330705335,1719718234242,-500.0,0.00013916,2]
[330705336,1719718234252,-283.95088989,0.00013916,3]
[330705337,1719718234261,-500.0,0.00013916,3]
[330705338,1719718234271,-500.0,0.00013916,3]
[330705339,1719718234281,-500.0,0.00013916,3]
[330705340,1719718234291,-500.0,0.00013916,3]
[330705341,1719718234300,-500.0,0.00013916,3]
[330705342,1719718234311,-159.32309766,0.00013916,3]
[330705343,1719718234321,-500.0,0.00013916,3]
[330705344,1719718234331,-609.86,0.00013916,3]
[330705345,1719718234340,-500.0,0.00013916,3]
[330705346,1719718234350,-500.0,0.00013916,3]
[330705347,1719718234361,-500.0,0.00013917,3]
[330705348,1719718234371,-500.0,0.00013917,3]
[330705349,1719718234381,-500.0,0.00013917,3]
[330705350,1719718234391,-500.0,0.00013917,3]
[330705351,1719718234400,-3073.95,0.00013917,3]
[330705352,1719718234410,-165.61,0.00013917,3]
[330705353,1719718234419,-500.0,0.00013917,3]
[330705354,1719718234432,-500.0,0.00013917,3]
[330705355,1719718234442,-500.0,0.00013917,3]
[330705356,1719718234452,-500.0,0.00013917,3]
[330705357,1719718234462,-500.0,0.00013917,3]
[330705358,1719718234472,-500.0,0.00013917,3]
[330705359,1719718234482,-1000.0,0.00013923,2]
[330705360,1719718234493,-500.0,0.00013926,3]
[330705361,1719718234502,-374.39,0.00013926,3]
[330705362,1719718234512,-230.9094864,0.00014007,2]
[330705363,1719718234521,-500.0,0.00014008,3]
[330705364,1719718234531,-1004.79,0.00014008,3]
[330705365,1719718234542,-568.4,0.00014008,3]
[330705366,1719718234551,-500.0,0.00014009,3]
[330705367,1719718234561,-1274.6,0.00014009,3]
[330705368,1719718234860,-569.8,0.00014009,3]
[330705369,1719718234877,-495.01,0.00014009,3]
[330705370,1719718234887,-500.0,0.00014009,3]
[330705371,1719718234896,-540.43,0.00014009,3]
[330705372,1719718234906,-500.0,0.00014009,3]
[330705373,1719718234917,-500.0,0.00014009,3]
[330705374,1719718234930,-674.13,0.00014009,3]
[330705375,1719718234940,-1157.89,0.00014009,3]
[330705376,1719718234949,-500.0,0.00014009,3]
[330705377,1719718234959,-500.0,0.00014009,3]
[330705378,1719718234969,-500.29082702,0.00014025,2]
[330705379,1719718234979,-500.0,0.00014026,2]
[330705380,1719718234989,-500.0,0.00014026,3]
[330705381,1719718234999,-500.0,0.00014026,3]
[330705382,1719718235008,-500.0,0.00014026,3]
[330705383,1719718235018,-500.0,0.00014026,3]
[330705384,1719718235027,-3073.95,0.00014026,3]
[330705385,1719718235037,-500.0,0.00014026,3]
[330705386,1719718235046,-500.0,0.00014026,3]
[330705387,1719718235055,-500.0,0.00014026,3]
[330705388,1719718235065,-500.0,0.00014026,3]
[330705389,1719718235076,-198.23950238,0.00014027,3]
[330705390,1719718235086,-500.0,0.00014027,3]
[330705391,1719718235097,-519.81,0.00014027,3]
[330705392,1719718235107,-160.26,0.00014027,3]
[330705393,1719718235116,-500.0,0.00014035,3]
[330705394,1719718235128,-198.02223651,0.00014036,2]
[330705395,1719718235139,-500.0,0.00014118,3]
[330705396,1719718235149,-1274.6,0.00014118,3]
[330705397,1719718235160,-500.0,0.00014118,3]
[330705398,1719718235170,-540.43,0.00014118,3]
[330705399,1719718235179,-500.0,0.00014118,3]
[330705400,1719718235189,-500.0,0.00014118,3]
[330705401,1719718235198,-674.13,0.00014118,3]
[330705402,1719718235208,-1157.89,0.00014118,3]
[330705403,1719718235218,-500.0,0.00014118,3]
[330705404,1719718235228,-1004.79,0.00014118,3]
[330705405,1719718235237,-568.4,0.00014118,3]
[330705406,1719718235247,-500.0,0.00014118,3]
[330705407,1719718235256,-500.0,0.00014118,3]
[330705408,1719718235266,-601.11,0.00014135,2]
[330705409,1719718235275,-500.0,0.00014135,3]
[330705410,1719718235285,-500.0,0.00014135,3]
[330705411,1719718235294,-500.0,0.00014136,3]
[330705412,1719718235304,-500.0,0.00014136,3]
[330705413,1719718235313,-500.0,0.00014136,3]
[330705414,1719718235323,-3073.95,0.00014136,3]
[330705415,1719718235332,-500.0,0.00014136,3]
[330705416,1719718235343,-500.0,0.00014136,3]
[330705417,1719718235354,-498.61383004,0.00014136,3]
[330705418,1719718235370,-1.38616996,0.00014136,3]
[330705419,1719718235379,-272.78023965,0.00014136,3]
[330705420,1719718235392,-227.21976035,0.00014136,3]
[330705421,1719718235403,-500.0,0.00014145,3]
[330705422,1719718235413,-500.0,0.00014227,3]
[330705423,1719718235423,-1004.79,0.00014227,3]
[330705424,1719718235436,-568.4,0.00014227,3]
[330705425,1719718235446,-367.63054568,0.00014228,3]
[330705426,1719718235458,-132.36945432,0.00014228,3]
[330705427,1719718235468,-136.19247718,0.00014228,3]
[330705428,1719718238422,-324.59202179,0.00014099,2]
[330705430,1719718238434,-1138.40752282,0.00014228,3]
[330705432,1719718238444,-500.0,0.00014228,3]
[330705433,1719718238454,-540.43,0.00014228,3]
[330705435,1719718238465,-500.0,0.00014228,3]
[330705437,1719718238476,-500.0,0.00014228,3]
[330705439,1719718238487,-674.13,0.00014228,3]
[330705441,1719718238497,-1157.89,0.00014228,3]
[330705443,1719718238508,-500.0,0.00014228,3]
[330705444,1719718238517,-357.07,0.00014228,3]
[330705446,1719718238528,-500.0,0.00014245,3]
[330705447,1719718238539,-500.0,0.00014245,3]
[330705448,1719718238549,-500.0,0.00014246,3]
[330705449,1719718238560,-500.0,0.00014246,3]
[330705450,1719718238571,-500.0,0.00014246,3]
[330705451,1719718238581,-3073.95,0.00014246,3]
[330705452,1719718238592,-500.0,0.00014246,3]
[330705453,1719718238603,-500.0,0.00014246,3]
[330705454,1719718238613,-500.0,0.00014246,3]
[330705455,1719718238624,-500.0,0.00014246,3]
[330705456,1719718238634,-600.0,0.0001425,2]
[330705457,1719718238645,-150.0,0.0001425,2]
[330705458,1719718238655,-548.6968627,0.00014255,3]
[330705459,1719718238666,-260.13,0.00014289,2]
[330705460,1719718238676,-1274.6,0.00014337,3]
[330705461,1719718238686,-500.0,0.00014337,3]
[330705462,1719718238696,-540.43,0.00014337,3]
[330705463,1719718238707,-500.0,0.00014337,3]
[330705464,1719718238717,-500.0,0.00014337,3]
[330705465,1719718238727,-674.13,0.00014337,3]
[330705466,1719718238743,-1157.89,0.00014337,3]
[330705467,1719718238754,-500.0,0.00014337,3]
[330705468,1719718238764,-1004.79,0.00014337,3]
[330705469,1719718238774,-568.4,0.00014337,3]
[330705470,1719718238788,-500.0,0.00014337,3]
[330705471,1719718238800,-500.0,0.00014355,3]
[330705472,1719718238810,-500.0,0.00014355,3]
[330705473,1719718238820,-500.0,0.00014355,3]
[330705474,1719718238830,-3073.95,0.00014355,3]
[330705475,1719718238840,-500.0,0.00014355,3]
[330705476,1719718238850,-500.0,0.00014355,3]
[330705477,1719718238860,-500.0,0.00014355,3]
[330705478,1719718238869,-500.0,0.00014355,3]
[330705479,1719718238879,-500.0,0.00014355,3]
[330705480,1719718238889,-500.0,0.00014356,3]
[330705481,1719718238899,-333.1,0.00014384,2]
[330705482,1719718238909,-1274.6,0.00014447,3]
[330705483,1719718238922,-500.0,0.00014447,3]
[330705484,1719718238932,-540.43,0.00014447,3]
[330705485,1719718238941,-500.0,0.00014447,3]
[330705486,1719718238951,-500.0,0.00014447,3]
[330705487,1719718238962,-674.13,0.00014447,3]
[330705488,1719718238971,-1157.89,0.00014447,3]
[330705489,1719718238985,-500.0,0.00014447,3]
[330705490,1719718238996,-1004.79,0.00014447,3]
[330705491,1719718239008,-568.4,0.00014447,3]
[330705492,1719718239019,-500.0,0.00014447,3]
[330705493,1719718239030,-1000.0,0.00014456,2]
[330705494,1719718239040,-500.0,0.00014464,3]
[330705495,1719718239051,-500.0,0.00014464,3]
[330705496,1719718239062,-500.0,0.00014465,3]
[330705497,1719718239073,-500.0,0.00014465,3]
[330705498,1719718239083,-500.0,0.00014465,3]
[330705499,1719718239093,-3073.95,0.00014465,3]
[330705500,1719718239104,-500.0,0.00014465,3]
[330705501,1719718239115,-500.0,0.00014465,3]
[330705502,1719718239126,-500.0,0.00014465,3]
[330705503,1719718239136,-500.0,0.00014465,3]
[330705504,1719718239147,-150.0,0.00014508,2]
[330705505,1719718239158,-1274.6,0.00014556,3]
[330705506,1719718239169,-500.0,0.00014556,3]
[330705507,1719718239180,-540.43,0.00014556,3]
[330705508,1719718239191,-500.0,0.00014556,3]
[330705509,1719718239202,-500.0,0.00014556,3]
[330705510,1719718239212,-674.13,0.00014556,3]
[330705511,1719718239222,-1157.89,0.00014556,3]
[330705512,1719718239234,-500.0,0.00014556,3]
[330705513,1719718239245,-1004.79,0.00014556,3]
[330705514,1719718239255,-568.4,0.00014556,3]
[330705515,1719718239265,-500.0,0.00014556,3]
[330705516,1719718239277,-320.66475,0.00014566,2]
[330705517,1719718239287,-500.0,0.00014574,3]
[330705518,1719718239298,-500.0,0.00014574,3]
[330705520,1719718239308,-500.0,0.00014574,3]
[330705522,1719718239318,-3073.95,0.00014574,3]
[330705524,1719718239329,-500.0,0.00014574,3]
[330705526,1719718239340,-500.0,0.00014574,3]
[330705528,1719718239350,-500.0,0.00014574,3]
[330705530,1719718239360,-500.0,0.00014574,3]
[330705532,1719718239371,-500.0,0.00014574,3]
[330705534,1719718239381,-435.24,0.00014575,3]
[330705536,1719718239392,-173.57,0.00014586,2]
[330705538,1719718239403,-500.0,0.00014665,3]
[330705540,1719718239414,-500.0,0.00014665,3]
[330705542,1719718239426,-500.0,0.00014665,3]
[330705544,1719718239437,-500.0,0.00014665,3]
[330705546,1719718239447,-500.0,0.00014665,3]
[330705548,1719718239458,-500.0,0.00014665,3]
[330705550,1719718239469,-500.0,0.00014665,3]
[330705552,1719718239481,-500.0,0.00014665,3]
[330705554,1719718239491,-500.0,0.00014665,3]
[330705556,1719718239502,-500.0,0.00014665,3]
[330705563,1719718239564,-500.0,0.00014665,3]
[330705565,1719718239575,-500.0,0.00014665,3]
[330705567,1719718239586,-500.0,0.00014665,3]
[330705569,1719718239596,-500.0,0.00014665,3]
[330705571,1719718239607,-500.0,0.00014665,3]
[330705573,1719718239618,-500.0,0.00014665,3]
[330705575,1719718239629,-500.0,0.00014665,3]
[330705577,1719718239639,-500.0,0.00014665,3]
[330705579,1719718239650,-500.0,0.00014665,3]
[330705581,1719718239661,-500.0,0.00014665,3]
[330705583,1719718239673,-500.0,0.00014665,3]
[330705585,1719718239686,-500.0,0.00014665,3]
[330705588,1719718239697,-500.0,0.00014665,3]
[330705589,1719718239708,-561.12,0.00014665,3]
[330705591,1719718239718,-245.20819908,0.00014665,3]
[330705593,1719718239731,-500.0,0.00014665,3]
[330705595,1719718239741,-500.0,0.00014665,3]
[330705597,1719718239752,-500.0,0.00014665,3]
[330705600,1719718239763,-155.73,0.00014665,3]
[330705602,1719718239774,-500.0,0.00014665,3]
[330705604,1719718239785,-524.56,0.00014665,3]
[330705606,1719718239796,-500.0,0.00014665,3]
[330705608,1719718239807,-500.0,0.00014665,3]
[330705610,1719718239820,-500.0,0.00014665,3]
[330705611,1719718239831,-500.0,0.00014665,3]
[330705612,1719718239842,-500.0,0.00014665,3]
[330705613,1719718239853,-500.0,0.00014665,3]
[330705614,1719718239863,-500.0,0.00014665,3]
[330705615,1719718239874,-397.81405925,0.00014665,3]
[330705616,1719718239886,-324.92711761,0.00014665,3]
[330705617,1719718239896,-500.0,0.00014665,3]
[330705618,1719718239907,-500.0,0.00014665,3]
[330705619,1719718239922,-500.0,0.00014665,3]
[330705620,1719718239932,-500.0,0.00014665,3]
[330705621,1719718239943,-500.0,0.00014665,3]
[330705622,1719718239955,-500.0,0.00014665,3]
[330705623,1719718239965,-500.0,0.00014665,3]
[330705624,1719718239975,-500.0,0.00014665,3]
[330705625,1719718239988,-500.0,0.00014665,3]
[330705626,1719718240001,-500.0,0.00014665,3]
[330705627,1719718240011,-500.0,0.00014665,3]
[330705629,1719718240022,-500.0,0.00014665,3]
[330705631,1719718240032,-500.0,0.00014665,3]
[330705633,1719718240043,-575.37,0.00014665,3]
[330705635,1719718240054,-500.0,0.00014665,3]
[330705637,1719718240064,-500.0,0.00014665,3]
[330705639,1719718240075,-500.0,0.00014665,3]
[330705641,1719718240086,-500.0,0.00014665,3]
[330705643,1719718240096,-500.0,0.00014665,3]
[330705645,1719718240107,-500.0,0.00014665,3]
[330705647,1719718240117,-500.0,0.00014665,3]
[330705649,1719718240127,-500.0,0.00014665,3]
[330705651,1719718240137,-500.0,0.00014665,3]
[330705653,1719718240147,-500.0,0.00014665,3]
[330705655,1719718240157,-500.0,0.00014665,3]
[330705657,1719718240167,-500.0,0.00014665,3]
[330705659,1719718240178,-500.0,0.00014665,3]
[330705661,1719718240189,-500.0,0.00014665,3]
[330705663,1719718240201,-500.0,0.00014665,3]
[330705665,1719718240211,-500.0,0.00014665,3]
[330705667,1719718240222,-500.0,0.00014665,3]
[330705669,1719718240233,-500.0,0.00014665,3]
[330705671,1719718240243,-500.0,0.00014665,3]
[330705673,1719718240254,-500.0,0.00014665,3]
[330705675,1719718240265,-500.0,0.00014665,3]
[330705677,1719718240275,-1274.6,0.00014666,3]
[330705679,1719718240286,-500.0,0.00014666,3]
[330705681,1719718240297,-540.43,0.00014666,3]
[330705683,1719718240307,-500.0,0.00014666,3]
[330705685,1719718240317,-500.0,0.00014666,3]
[330705687,1719718240327,-674.13,0.00014666,3]
[330705689,1719718240337,-1157.89,0.00014666,3]
[330705691,1719718240348,-500.0,0.00014666,3]
[330705693,1719718240358,-1004.79,0.00014666,3]
[330705695,1719718240369,-568.4,0.00014666,3]
[330705697,1719718240380,-500.0,0.00014666,3]
[330705699,1719718240390,-500.0,0.00014683,3]
[330705701,1719718240401,-500.0,0.00014684,3]
[330705703,1719718240411,-500.0,0.00014684,3]
[330705706,1719718240421,-3073.95,0.00014684,3]
[330705707,1719718240433,-500.0,0.00014684,3]
[330705709,1719718240444,-500.0,0.00014684,3]
[330705711,1719718240454,-500.0,0.00014684,3]
[330705713,1719718240464,-500.0,0.00014684,3]
[330705715,1719718240474,-500.0,0.00014684,3]
[330705717,1719718240486,-251.0,0.000147,2]
[330705719,1719718240496,-65820.66235452,0.00014727,2]
[330705721,1719718240507,-3926.61642537,0.00014727,2]
[330705723,1719718240517,-500.0,0.00014775,3]
[330705725,1719718240527,-500.0,0.00014775,3]
[330705727,1719718240537,-500.0,0.00014775,3]
[330705729,1719718240548,-419.71,0.00014775,3]
[330705731,1719718240558,-188.83,0.00014775,3]
[330705733,1719718240569,-500.0,0.00014775,3]
[330705735,1719718240580,-500.0,0.00014775,3]
[330705737,1719718240590,-500.0,0.00014775,3]
[330705739,1719718240600,-500.0,0.00014775,3]
[330705741,1719718240611,-500.0,0.00014775,3]
[330705743,1719718240621,-1004.79,0.00014775,3]
[330705745,1719718240631,-500.0,0.00014775,3]
[330705747,1719718240642,-521.84,0.00014775,3]
[330705749,1719718240652,-500.0,0.00014775,3]
[330705751,1719718240663,-568.4,0.00014775,3]
[330705753,1719718240673,-500.0,0.00014775,3]
[330705755,1719718240683,-1274.6,0.00014776,3]
[330705757,1719718240694,-500.0,0.00014776,3]
[330705759,1719718240703,-540.43,0.00014776,3]
[330705761,1719718240713,-500.0,0.00014776,3]
[330705763,1719718240723,-500.0,0.00014776,3]
[330705765,1719718240734,-674.13,0.00014776,3]
[330705767,1719718240744,-1157.89,0.00014776,3]
[330705769,1719718240754,-500.0,0.00014776,3]
[330705771,1719718240764,-500.0,0.00014793,3]
[330705773,1719718240774,-500.0,0.00014793,3]
[330705775,1719718240784,-500.0,0.00014793,3]
[330705777,1719718240795,-3073.95,0.00014793,3]
[330705779,1719718240805,-500.0,0.00014793,3]
[330705781,1719718240815,-500.0,0.00014793,3]
[330705783,1719718240825,-500.0,0.00014793,3]
[330705785,1719718240836,-189.81480244,0.00014793,3]
[330705787,1719718240846,-500.0,0.00014793,3]
[330705789,1719718240857,-250.0,0.00014798,2]
[330705791,1719718240867,-635.104,0.00014803,2]
[330705793,1719718240878,-785.939,0.00014803,2]
[330705795,1719718240888,-500.0,0.00014884,3]
[330705797,1719718240898,-500.0,0.00014884,3]
[330705799,1719718240908,-337.12,0.00014884,3]